[Event "45th FIDE Olympiad 2024"]
[Site "Budapest"]
[Date "2024.09.19"]
[Round "8.45"]
[White "Peralta, Fernando"]
[Black "Ivanchuk, Vasyl"]
[Result "0-1"]
[ECO "D18"]
[WhiteElo "2558"]
[BlackElo "2635"]
[Annotator "TA"]
[PlyCount "114"]
[EventDate "2024.09.05"]
[EventType "team-tourn"]
[EventCountry "HUN"]
[SourceTitle "playchess.com"]
[Source "ChessBase"]
[SourceQuality "1"]
[WhiteTeam "Argentina"]
[BlackTeam "Ukraine"]
[WhiteTeamCountry "ARG"]
[BlackTeamCountry "UKR"]
[TimeControl "40/5400+30:1800+30"]

{[%evp 32,114,-83,-60,-85,-127,-154,-122,0,0,0,-129,-133,-166,-133,-125,-133,-137,-98,-97,-110,-85,-97,-127,-116,-194,-25,-148,-119,-126,-133,-134,-43,-47,-24,-13,-12,-229,-251,-249,-242,-242,-229,-212,-227,-232,-227,-229,-191,-191,-188,-202,-205,-204,-170,-283,-283,-284,-275,-275,-283,-304,-229,-322,-373,-392,-395,-391,-375,-380,-329,-354,-353,-605,-598,-598,-572,-598,-598,-598,-598,-29990,-29991,-29995,-29996]} 1. d4 {[%emt 0:00:05]} d5 {[%emt 0:00:03]} 2. c4 {[%emt 0:00:09]} c6 {[%emt 0:00:03]} 3. Nf3 {[%emt 0:00:25]} Nf6 {[%emt 0:00:06]} 4. Nc3 {[%emt 0:00:03]} dxc4 {[%emt 0:00:03]} 5. a4 {[%emt 0:00:15]} Bf5 {[%emt 0:00:04]} 6. e3 {[%emt 0:00:12]} e6 {[%emt 0:00:06]} 7. Bxc4 {[%emt 0:00:05]} Bb4 {[%emt 0:00:02]} 8. O-O {[%emt 0:00:12]} O-O {[%emt 0:00:13]} 9. Nh4 {[%emt 0:04:07]} Nbd7 {[%emt 0:02:26]} 10. h3 {[%emt 0:00:06]} Qe7 {[%emt 0:05:17] D18: Slav Defence: 5 a4 Bf5 6 e3.} 11. Nxf5 {[%emt 0:05:16]} exf5 {[%emt 0:00:03]} 12. Qf3 {[%emt 0:00:26]} g6 {[%emt 0:00:21]} 13. g4 {[%emt 0:00:45]} fxg4 {[%emt 0:00:26]} 14. hxg4 {[%emt 0:00:04]} Rae8 {[%emt 0:00:04]} 15. a5 $146 {[%emt 0:10:28]} ({Predecessor:} 15. Kg2 Kg7 16. Rh1 h5 17. gxh5 Nxh5 18. Bd2 f5 19. Rag1 Ndf6 20. Kf1 Bxc3 21. Bxc3 {1-0 Garriga Cazorla,P (2472)-Sargsyan,A (2380) Titled Tuesday intern op 01st Mar Early blitz 2022 (10)}) 15... Qd8 {[%emt 0:08:40]} 16. Kg2 {[%emt 0:11:32]} Bxc3 {[%emt 0:17:50]} 17. bxc3 {[%emt 0:00:10]} Re4 {[%emt 0:00:01]} 18. Rg1 {[%emt 0:12:56]} Rxg4+ {[%emt 0:02:14]} 19. Kf1 {[%emt 0:02:01]} Rxg1+ {[%emt 0:00:02]} (19... Rh4 $17 {Hoping for ...Ne4.} 20. Qg2 Re8) 20. Kxg1 $11 {[%emt 0:00:06]} Re8 {[%emt 0:00:03]} 21. Bb2 {[%emt 0:03:44] [#]} (21. Bd3 $1 $11) 21... Re4 $1 $17 {[%emt 0:03:05]} 22. Bf1 {[%emt 0:12:45]} Rg4+ {[%emt 0:02:59]} 23. Bg2 {[%emt 0:00:08]} h5 {[%emt 0:00:02]} 24. Qe2 {[%emt 0:05:57]} h4 {[%emt 0:02:24]} 25. Kh1 {[%emt 0:02:22]} Ne4 {[%emt 0:01:04]} 26. Bxe4 {[%emt 0:19:07]} Rxe4 {[%emt 0:00:10]} 27. c4 {[%emt 0:00:08]} Nf6 {[%emt 0:05:18]} 28. Rg1 {[%emt 0:03:26]} (28. Rd1 $17) 28... Re6 $2 {[%emt 0:00:13]} (28... Qxa5 29. Qf3 Qb6 30. Qxf6 Qxb2 31. Rxg6+ fxg6 32. Qxg6+ Kf8 33. Qf5+ Kg7 34. Qg5+ Kh7 35. Qf5+ Kg7 36. Qg5+ Kf8 37. Qf5+ Kg7 $11) (28... Qc8 $19 {[%cal Rc8h3]} 29. Qf3 Ng4) 29. Bc3 {[%emt 0:01:26]} (29. Qf3 $11 {keeps the balance.}) 29... Ne4 {[%emt 0:04:14]} 30. Be1 {[%emt 0:00:08]} Qf6 {[%emt 0:19:25]} 31. Rg4 {[%emt 0:03:37]} Qf5 {[%emt 0:00:01]} (31... Ng5 $17 {White must now prevent ...Nf3.} 32. d5 cxd5 33. cxd5 Re8) 32. Rxh4 $15 {[%emt 0:00:56]} Ng5 {[%emt 0:00:01]} 33. Kg2 {[%emt 0:02:08]} Re4 {[%emt 0:00:01]} 34. Rxe4 $2 {[%emt 0:01:39]} (34. f4 $11 {and White is okay.}) 34... Qh3+ $19 {[%emt 0:00:03]} (34... Qxe4+ 35. f3 Qf5 36. Bg3 $11) 35. Kg1 {[%emt 0:00:05]} Nf3+ {[%emt 0:01:11]} (35... Nxe4 36. f3 Ng5 37. Kf2 $11) 36. Qxf3 {[%emt 0:00:04]} Qxf3 {[%emt 0:00:10]} 37. Re8+ {[%emt 0:01:26]} Kg7 {[%emt 0:00:01]} 38. Bb4 {[%emt 0:00:27]} g5 {[%emt 0:01:22]} 39. Re7 {[%emt 0:00:25]} Qg4+ {[%emt 0:02:30]} 40. Kf1 {[%emt 0:00:25]} Qd1+ {[%emt 0:10:49]} 41. Kg2 {[%emt 0:30:12]} Qb1 {[%emt 0:30:25]} 42. Bd6 {[%emt 0:00:00]} Qb3 {[%emt 0:00:00]} 43. Bc5 {[%emt 0:00:00]} (43. c5 $142) 43... b6 $19 {[%emt 0:00:00]} (43... Qxc4 44. Rxb7 Qd5+ 45. Kg1 $15) 44. Rb7 {[%emt 0:00:00]} Qxc4 {[%emt 0:00:00]} 45. axb6 {[%emt 0:00:00]} axb6 {[%emt 0:00:00]} 46. Rxb6 {[%emt 0:00:00]} f6 {[%emt 0:00:00]} 47. e4 {[%emt 0:00:00]} (47. Rb7+ $142 Kg6 48. Re7) 47... Qe2 $19 {[%emt 0:00:00]} 48. Rb7+ {[%emt 0:00:00]} Kg6 {[%emt 0:00:00]} 49. Re7 {[%emt 0:00:00]} g4 {[%emt 0:00:00]} 50. Re8 {[%emt 0:00:00]} Qf3+ {[%emt 0:00:00]} 51. Kg1 {[%emt 0:00:00]} Kg5 {[%emt 0:00:00]} 52. Rg8+ $2 {[%emt 0:05:12]} (52. Re7) 52... Kf4 $19 {[%emt 0:00:00]} 53. Re8 {[%emt 0:00:08]} Qb3 {[%emt 0:00:00]} 54. Rf8 {[%emt 0:01:18] [#]} Qe6 $1 {[%emt 0:00:00]} ({Weaker is} 54... Kxe4 55. Rxf6 Kd5 56. Rf8 $15) 55. d5 {[%emt 0:00:45]} Qe5 {[%emt 0:00:00]} ({And not} 55... Qxe4 56. Rxf6+ Kg5 57. Rxc6 $11) 56. Be3+ {[%emt 0:00:36]} Kf3 {[%emt 0:00:00]} 57. dxc6 {[%emt 0:00:32]} Qa1+ {[%emt 0:00:00]} 0-1

[Event "45th FIDE Olympiad 2024"]
[Site "Budapest"]
[Date "2024.09.19"]
[Round "8.45"]
[White "Al-Hajiri, Bader"]
[Black "Van Bemmelen, Ursus"]
[Result "1-0"]
[WhiteElo "1947"]
[BlackElo "2146"]
[Annotator "RC"]
[PlyCount "61"]
[EventDate "2024.09.05"]
[EventType "team-tourn"]
[EventCountry "HUN"]
[WhiteTeam "Kuwait"]
[BlackTeam "Netherlands Antilles"]
[WhiteTeamCountry "KUW"]
[BlackTeamCountry "AHO"]
[TimeControl "40/5400+30:1800+30"]

1. e4 c5 2. Nf3 e6 3. Nc3 a6 4. d4 cxd4 5. Nxd4 Qc7 6. Bd3 Nf6 7. O-O Nc6 8. Nxc6 bxc6 9. Qe2 d5 10. b3 Bb4 11. Bb2 O-O 12. e5 Nd7 13. Na4 Re8 14. f4 g6 15. Qg4 Bf8 16. c4 Bg7 17. Rac1 Qa7+ 18. Kh1 a5 19. Rf3 Ba6 20. h4 dxc4 21. bxc4 Rab8 22. Ba3 Qd4 23. Rg3 Bf8 24. Bxf8 Kxf8 25. h5 Rb4 26. hxg6 hxg6 27. Qg5 Nxe5 28. fxe5 Rxa4 29. Rh3 Qd8 30. Rh8+ Kg7 31. Qh6# 1-0

[Event "45th FIDE Olympiad 2024"]
[Site "Budapest"]
[Date "2024.09.19"]
[Round "8.46"]
[White "Ponomariov, Ruslan"]
[Black "Krysa, Leandro"]
[Result "1/2-1/2"]
[ECO "C77"]
[WhiteElo "2654"]
[BlackElo "2495"]
[Annotator "TA"]
[PlyCount "69"]
[EventDate "2024.09.05"]
[EventType "team-tourn"]
[EventCountry "HUN"]
[SourceTitle "playchess.com"]
[Source "ChessBase"]
[SourceQuality "1"]
[WhiteTeam "Ukraine"]
[BlackTeam "Argentina"]
[WhiteTeamCountry "UKR"]
[BlackTeamCountry "ARG"]
[TimeControl "40/5400+30:1800+30"]

{[%evp 10,69,35,12,10,20,16,22,28,0,0,9,10,7,17,0,0,0,16,2,15,25,21,0,0,-17,-6,-7,0,0,0,0,0,0,0,0,0,0,16,8,8,0,0,0,0,0,0,0,0,0,0,0,0,0,0,0,0,0,0,0,0,0]} 1. e4 {[%emt 0:00:03]} e5 {[%emt 0:00:11]} 2. Nf3 {[%emt 0:00:09]} Nc6 {[%emt 0:00:11]} 3. Bb5 {[%emt 0:00:12]} a6 {[%emt 0:00:15]} 4. Ba4 {[%emt 0:00:09]} Nf6 {[%emt 0:00:16]} 5. d3 {[%emt 0:00:20]} d6 {[%emt 0:00:45]} 6. c4 {[%emt 0:00:45]} Be7 {[%emt 0:04:34]} 7. h3 {[%emt 0:01:09]} O-O {[%emt 0:01:58]} 8. O-O {[%emt 0:00:40]} Nd7 {[%emt 0:01:30]} 9. Be3 {[%emt 0:12:43]} Bf6 {[%emt 0:00:29]} 10. Nc3 {[%emt 0:12:33]} Nd4 {[%emt 0:01:28]} 11. b4 {[%emt 0:02:36]} c6 {[%emt 0:05:38]} 12. Bxd4 {[%emt 0:04:09]} exd4 {[%emt 0:00:10]} 13. Ne2 {[%emt 0:00:03]} b5 {[%emt 0:08:48]} 14. Bb3 {[%emt 0:01:43]} c5 {[%emt 0:19:22]} 15. cxb5 {[%emt 0:20:16]} axb5 {[%emt 0:01:14]} 16. Rc1 {[%emt 0:00:14] The position is equal.} Ba6 {[%emt 0:04:43]} 17. bxc5 {[%emt 0:07:14]} (17. Ng3 {looks sharper.} Rc8 18. Nf5 c4 19. dxc4 bxc4 20. Ba4) 17... dxc5 {[%emt 0:01:35]} 18. a4 {[%emt 0:00:09]} bxa4 {[%emt 0:05:17]} (18... b4 {seems wilder.} 19. Nf4 Re8 20. g3 Rc8) 19. Bxa4 {[%emt 0:01:23]} Bxd3 {[%emt 0:16:20]} 20. Bxd7 {[%emt 0:01:06]} Bxe2 {[%emt 0:00:20]} 21. Qxe2 {[%emt 0:00:04]} Qxd7 {[%emt 0:00:09]} 22. Rxc5 {[%emt 0:00:05]} d3 {[%emt 0:11:46]} 23. Qe3 {[%emt 0:01:03]} Qa7 {[%emt 0:01:50]} 24. Rd1 {[%emt 0:05:18]} Rfd8 {[%emt 0:02:34]} 25. e5 {[%emt 0:03:32]} Be7 {[%emt 0:01:41]} 26. Rc3 {[%emt 0:00:14]} Qxe3 {[%emt 0:01:40]} 27. fxe3 {[%emt 0:00:04]} Ra3 {[%emt 0:02:03]} 28. Rxa3 {[%emt 0:00:57]} Bxa3 $11 {[%emt 0:00:07][%mdl 4096] Endgame. KRB-KRN} 29. Nd4 {[%emt 0:00:14]} Rd5 {[%emt 0:02:10]} 30. e6 {[%emt 0:07:52]} fxe6 {[%emt 0:00:37]} 31. Nxe6 {[%emt 0:00:04]} Re5 {[%emt 0:02:15][%csl LRe3,LRe6]} 32. Rxd3 {[%emt 0:02:09]} Bc1 $1 {[%emt 0:00:15]} 33. Nd4 {[%emt 0:00:13]} Bxe3+ {[%emt 0:00:53]} 34. Kf1 {[%emt 0:00:06]} Bxd4 {[%emt 0:00:21]} 35. Rxd4 {[%emt 0:00:05] An even fight not without its subleties.   Weighted Error Value: White=0.05 (flawless) /Black=0.02 (flawless) .  OK:         	White=14    	Black=13     Best:        	White=1     	Black=1      Strong:       	---       	Black=1} 1/2-1/2

[Event "45th FIDE Olympiad 2024"]
[Site "Budapest"]
[Date "2024.09.19"]
[Round "8.46"]
[White "Capella, Rurik"]
[Black "Al Ibrahim, Abdulrahman"]
[Result "0-1"]
[WhiteElo "1971"]
[BlackElo "1932"]
[PlyCount "86"]
[EventDate "2024.09.05"]
[EventType "team-tourn"]
[EventCountry "HUN"]
[WhiteTeam "Netherlands Antilles"]
[BlackTeam "Kuwait"]
[WhiteTeamCountry "AHO"]
[BlackTeamCountry "KUW"]
[TimeControl "40/5400+30:1800+30"]

1. e4 e5 2. d4 exd4 3. Qxd4 Nc6 4. Qc4 Nf6 5. Nc3 Nb4 6. Bd3 d5 7. exd5 Nbxd5 8. Bg5 Qe7+ 9. Nge2 Nxc3 10. Qxc3 Qb4 11. Bxf6 gxf6 12. O-O-O Qxc3 13. Nxc3 Be6 14. Nb5 Bd6 15. Nxd6+ cxd6 16. Bb5+ Ke7 17. f4 f5 18. Rhe1 Rac8 19. b3 Rhg8 20. g3 h5 21. Re3 h4 22. Rd5 hxg3 23. hxg3 Rxg3 24. Re2 Rc5 25. Rxc5 dxc5 26. Rf2 a6 27. Be2 b5 28. Kb2 Bd5 29. a4 bxa4 30. Bxa6 axb3 31. Re2+ Be6 32. c4 Rf3 33. Bb5 Rxf4 34. Kxb3 Kd6 35. Re1 Rd4 36. Ba6 f4 37. Rf1 Ke5 38. Kc3 Kf5 39. Rh1 f3 40. Rf1 Kf4 41. Bb7 Bg4 42. Re1 f2 43. Re7 f1=Q {0-} 0-1

[Event "45th FIDE Olympiad 2024"]
[Site "Budapest"]
[Date "2024.09.19"]
[Round "8.47"]
[White "Flores, Diego"]
[Black "Korobov, Anton"]
[Result "1/2-1/2"]
[ECO "A09"]
[WhiteElo "2546"]
[BlackElo "2650"]
[Annotator "TA"]
[PlyCount "69"]
[EventDate "2024.09.05"]
[EventType "team-tourn"]
[EventCountry "HUN"]
[SourceTitle "playchess.com"]
[Source "ChessBase"]
[SourceQuality "1"]
[WhiteTeam "Argentina"]
[BlackTeam "Ukraine"]
[WhiteTeamCountry "ARG"]
[BlackTeamCountry "UKR"]
[TimeControl "40/5400+30:1800+30"]

{[%evp 9,69,-10,0,0,-5,-6,0,0,0,0,0,1,3,2,12,13,8,8,16,2,19,0,4,0,5,0,0,0,0,0,0,0,0,0,0,0,0,-8,-8,-25,0,0,4,2,25,17,27,0,0,0,0,0,0,0,0,0,0,0,0,0,0,0]} 1. Nf3 {[%emt 0:00:13]} d5 {[%emt 0:00:19]} 2. c4 {[%emt 0:00:23]} d4 {[%emt 0:02:40]} 3. e3 {[%emt 0:01:50]} Nc6 {[%emt 0:00:48]} 4. exd4 {[%emt 0:00:22]} Nxd4 {[%emt 0:00:15]} 5. Be2 {[%emt 0:00:09]} Nh6 {[%emt 0:06:39][%cal Bg8h6,Bh6f5,Bf5d4][%mdl 32]} 6. Nxd4 {[%emt 0:01:37]} Qxd4 {[%emt 0:02:11]} 7. d3 {[%emt 0:00:24]} Nf5 {[%emt 0:02:14]} 8. O-O {[%emt 0:00:58]} Qd8 {[%emt 0:03:01]} 9. Bd2 {[%emt 0:11:27]} g6 {[%emt 0:04:21]} 10. Bc3 {[%emt 0:04:56]} Nd4 {[%emt 0:00:31]} 11. Nd2 {[%emt 0:02:42]} Bg7 {[%emt 0:01:39]} 12. Nb3 {[%emt 0:05:41]} O-O {[%emt 0:01:56]} 13. Nxd4 {[%emt 0:02:27]} Bxd4 {[%emt 0:00:31]} 14. Bf3 {[%emt 0:00:30]} c6 {[%emt 0:04:17]} 15. Re1 {[%emt 0:01:09]} e5 {[%emt 0:06:57]} 16. Qb3 {[%emt 0:08:23]} Re8 {[%emt 0:09:07]} 17. Bxd4 {[%emt 0:04:00]} Qxd4 {[%emt 0:01:20]} 18. Re3 {[%emt 0:13:01]} f6 {[%emt 0:06:39]} 19. Rae1 {[%emt 0:00:25]} Re7 {[%emt 0:11:16]} 20. Qa3 {[%emt 0:06:42]} Rf7 {[%emt 0:03:15]} 21. Qc3 {[%emt 0:09:45]} Qxc3 {[%emt 0:05:45]} 22. bxc3 {[%emt 0:00:10]} Be6 {[%emt 0:00:03]} 23. Be2 {[%emt 0:00:30]} Re7 {[%emt 0:04:46]} 24. Bd1 {[%emt 0:06:07][%cal Of2f4]} Rd8 {[%emt 0:05:06]} 25. f4 {[%emt 0:00:38]} Red7 {[%emt 0:00:26]} (25... exf4 26. Rxe6 Rxe6 27. Rxe6 $18) 26. Be2 {[%emt 0:06:33]} Bf5 {[%emt 0:00:06]} 27. fxe5 {[%emt 0:00:19]} fxe5 {[%emt 0:00:02]} (27... Bxd3 $2 {loses.} 28. e6 (28. exf6 Bxe2 29. R1xe2 Kf7 $16) 28... Re7 29. Rxd3 $18 (29. Bxd3 f5 $18)) 28. Rd1 {[%emt 0:00:39][%cal Og2g4]} h5 {[%emt 0:00:53] The position is equal.} 29. h3 {[%emt 0:02:35][%cal Og2g4]} h4 {[%emt 0:03:43]} 30. Rxe5 {[%emt 0:02:38]} Bxd3 {[%emt 0:00:05]} 31. Bg4 {[%emt 0:04:05]} Bf5 {[%emt 0:01:32]} 32. Rxd7 {[%emt 0:00:08]} Bxd7 {[%emt 0:00:05]} 33. Re7 {[%emt 0:00:12]} Bxg4 {[%emt 0:00:38]} 34. hxg4 {[%emt 0:00:04]} Rd3 {[%emt 0:00:42]} 35. Rxb7 {[%emt 0:00:37] A rather calm draw.   Weighted Error Value: White=0.02 (flawless) /Black=0.03 (flawless) .  Inaccurate:     	White=1     	---        OK:         	White=19    	Black=13} 1/2-1/2

[Event "45th FIDE Olympiad 2024"]
[Site "Budapest"]
[Date "2024.09.19"]
[Round "8.47"]
[White "Hussain, Hashem"]
[Black "Van Opstal, Rurik"]
[Result "0-1"]
[WhiteElo "1807"]
[BlackElo "2006"]
[PlyCount "62"]
[EventDate "2024.09.05"]
[EventType "team-tourn"]
[EventCountry "HUN"]
[WhiteTeam "Kuwait"]
[BlackTeam "Netherlands Antilles"]
[WhiteTeamCountry "KUW"]
[BlackTeamCountry "AHO"]
[TimeControl "40/5400+30:1800+30"]

1. e4 c5 2. c3 d5 3. exd5 Qxd5 4. d4 g6 5. Nf3 Bg7 6. Be3 cxd4 7. cxd4 Nh6 8. Nc3 Qa5 9. Bc4 O-O 10. O-O Nf5 11. Rc1 Nc6 12. h3 a6 13. d5 Nxe3 14. fxe3 Ne5 15. Nxe5 Bxe5 16. Qf3 Rb8 17. Ne4 b5 18. d6 e6 19. Bb3 Qd8 20. d7 Bxd7 21. Rcd1 Qe7 22. Nc5 Bc8 23. Nd3 Bg7 24. Qg3 Bb7 25. Ne5 Qc7 26. Rxf7 Rxf7 27. Bxe6 Qxe5 28. Bxf7+ Kxf7 29. Rd7+ Kf8 30. Qf2+ Qf6 31. Qxf6+ Bxf6 {0-} 0-1

[Event "45th FIDE Olympiad 2024"]
[Site "Budapest"]
[Date "2024.09.19"]
[Round "8.48"]
[White "Onyshchuk, Volodymyr"]
[Black "Sosa, Tomas"]
[Result "1-0"]
[ECO "D11"]
[WhiteElo "2610"]
[BlackElo "2515"]
[Annotator "RC"]
[PlyCount "105"]
[EventDate "2024.09.05"]
[EventType "team-tourn"]
[EventCountry "HUN"]
[SourceTitle "playchess.com"]
[Source "ChessBase"]
[SourceQuality "1"]
[WhiteTeam "Ukraine"]
[BlackTeam "Argentina"]
[WhiteTeamCountry "UKR"]
[BlackTeamCountry "ARG"]
[TimeControl "40/5400+30:1800+30"]

1. Nf3 {[%emt 0:00:11]} d5 {[%emt 0:00:14]} 2. g3 {[%emt 0:00:31]} Bg4 {[%emt 0:02:10]} 3. Bg2 {[%emt 0:00:16]} Nd7 {[%emt 0:00:42]} 4. O-O {[%emt 0:00:17]} Ngf6 {[%emt 0:02:14]} 5. d4 {[%emt 0:04:05]} e6 {[%emt 0:00:22]} 6. c4 {[%emt 0:01:05]} c6 {[%emt 0:02:59]} 7. Qb3 {[%emt 0:01:22]} Qb6 {[%emt 0:01:21]} 8. c5 {[%emt 0:00:17]} Qa6 {[%emt 0:03:10]} 9. Nc3 {[%emt 0:01:42]} b6 {[%emt 0:05:49]} 10. cxb6 {[%emt 0:00:57]} axb6 {[%emt 0:02:38]} 11. e4 {[%emt 0:13:13]} dxe4 {[%emt 0:08:28]} 12. Ne5 {[%emt 0:01:49]} Nxe5 {[%emt 0:02:09]} 13. dxe5 {[%emt 0:00:09]} Nd5 {[%emt 0:00:19]} 14. Nxe4 {[%emt 0:02:40]} Be2 {[%emt 0:18:40]} 15. Re1 {[%emt 0:02:12]} Qc4 {[%emt 0:06:27]} 16. Bd2 {[%emt 0:10:28]} Be7 {[%emt 0:00:53]} 17. Nc3 {[%emt 0:10:54]} Qxb3 {[%emt 0:06:48]} 18. axb3 {[%emt 0:00:10]} Ba6 {[%emt 0:00:05]} 19. Nxd5 {[%emt 0:05:31]} exd5 {[%emt 0:01:27]} 20. Bf1 {[%emt 0:06:22]} Bb7 {[%emt 0:02:44]} 21. Rxa8+ {[%emt 0:00:10]} Bxa8 {[%emt 0:00:05]} 22. Ra1 {[%emt 0:00:06]} O-O {[%emt 0:00:17]} 23. Ra7 {[%emt 0:02:02]} Re8 {[%emt 0:04:08]} 24. b4 {[%emt 0:07:16]} Kf8 {[%emt 0:04:22]} 25. Bd3 {[%emt 0:00:34]} h6 {[%emt 0:01:01]} 26. f4 {[%emt 0:05:23]} c5 {[%emt 0:03:15]} 27. Bb5 {[%emt 0:00:31]} Rc8 {[%emt 0:09:09]} 28. f5 {[%emt 0:00:58]} cxb4 {[%emt 0:01:24]} 29. f6 {[%emt 0:02:34]} Bc5+ {[%emt 0:00:24]} 30. Kf1 {[%emt 0:00:22]} gxf6 {[%emt 0:00:27]} 31. e6 {[%emt 0:11:51]} fxe6 {[%emt 0:01:17]} 32. Bxh6+ {[%emt 0:01:47]} Kg8 {[%emt 0:00:04]} 33. Bd7 {[%emt 0:00:11]} b5 {[%emt 0:02:32]} 34. Bxe6+ {[%emt 0:00:34]} Kh8 {[%emt 0:00:06]} 35. Bg7+ {[%emt 0:03:17]} Kh7 {[%emt 0:00:05]} 36. Bf5+ {[%emt 0:00:36]} Kg8 {[%emt 0:00:04]} 37. Be6+ {[%emt 0:00:47]} Kh7 {[%emt 0:00:05]} 38. Bf5+ {[%emt 0:00:05]} Kg8 {[%emt 0:00:04]} 39. Bxc8 {[%emt 0:00:05]} Bxa7 {[%emt 0:00:07]} 40. Bxf6 {[%emt 0:00:07]} Kf7 {[%emt 0:02:09]} 41. Be5 {[%emt 0:33:01]} b3 {[%emt 0:12:35]} 42. Ke2 {[%emt 0:00:00]} Bg1 {[%emt 0:02:18]} 43. h4 {[%emt 0:00:00]} d4 {[%emt 0:04:05]} 44. Bf4 {[%emt 0:00:00]} Be4 {[%emt 0:02:42]} 45. Kf1 {[%emt 0:00:00]} Bh2 {[%emt 0:00:06]} 46. Kf2 {[%emt 0:00:00]} Kf6 {[%emt 0:04:11]} 47. Bd7 {[%emt 0:00:00]} b4 {[%emt 0:00:28]} 48. Bh3 {[%emt 0:00:00]} d3 {[%emt 0:10:39]} 49. Bg2 {[%emt 0:00:00]} Bg6 {[%emt 0:01:29]} 50. Bf3 {[%emt 0:00:00]} Ke6 {[%emt 0:00:33]} 51. Kg2 {[%emt 0:00:00]} Bxg3 {[%emt 0:00:05]} 52. Kxg3 {[%emt 0:00:00]} Kf6 {[%emt 0:00:50]} 53. Bd2 {[%emt 0:00:00]} 1-0

[Event "45th FIDE Olympiad 2024"]
[Site "Budapest"]
[Date "2024.09.19"]
[Round "8.48"]
[White "Blijstra, Willem"]
[Black "Alabdaljader, Mohammed"]
[Result "0-1"]
[WhiteElo "2063"]
[BlackElo "1677"]
[PlyCount "66"]
[EventDate "2024.09.05"]
[EventType "team-tourn"]
[EventCountry "HUN"]
[WhiteTeam "Netherlands Antilles"]
[BlackTeam "Kuwait"]
[WhiteTeamCountry "AHO"]
[BlackTeamCountry "KUW"]
[TimeControl "40/5400+30:1800+30"]

1. d4 Nf6 2. c4 e6 3. Nf3 Bb4+ 4. Bd2 Qe7 5. Nc3 Nc6 6. Qc2 d6 7. a3 Bxc3 8. Bxc3 e5 9. d5 Nb8 10. e4 a5 11. Be2 Na6 12. O-O Nc5 13. Nd2 a4 14. f3 O-O 15. b4 axb3 16. Nxb3 Nxb3 17. Qxb3 Nh5 18. Rfd1 Kh8 19. Bf1 b6 20. Ra2 Bd7 21. a4 Qg5 22. Bd2 Nf4 23. Kh1 Qh5 24. a5 bxa5 25. Rxa5 Rab8 26. Qc2 g5 27. Bxf4 gxf4 28. c5 Rg8 29. c6 Bh3 30. Qf2 f5 31. Rd3 Bxg2+ 32. Bxg2 Rb1+ 33. Bf1 Qh3 {0-} 0-1

[Event "45th FIDE Olympiad 2024"]
[Site "Budapest"]
[Date "2024.09.19"]
[Round "8.49"]
[White "Navara, David"]
[Black "Schitco, Ivan"]
[Result "1-0"]
[ECO "C65"]
[WhiteElo "2681"]
[BlackElo "2527"]
[Annotator "RC"]
[PlyCount "103"]
[EventDate "2024.09.05"]
[EventType "team-tourn"]
[EventCountry "HUN"]
[SourceTitle "playchess.com"]
[Source "ChessBase"]
[SourceQuality "1"]
[WhiteTeam "Czech Republic"]
[BlackTeam "Moldova"]
[WhiteTeamCountry "CZE"]
[BlackTeamCountry "MDA"]
[TimeControl "40/5400+30:1800+30"]

1. e4 {[%emt 0:00:02]} e5 {[%emt 0:00:07]} 2. Nf3 {[%emt 0:00:04]} Nc6 {[%emt 0:00:09]} 3. Bb5 {[%emt 0:00:05]} Nf6 {[%emt 0:00:24]} 4. d3 {[%emt 0:00:08]} Bc5 {[%emt 0:00:12]} 5. Ba4 {[%emt 0:00:32]} O-O {[%emt 0:01:32]} 6. O-O {[%emt 0:00:12]} d5 {[%emt 0:02:19]} 7. exd5 {[%emt 0:00:43]} Qxd5 {[%emt 0:00:06]} 8. Nc3 {[%emt 0:00:35]} Qd6 {[%emt 0:00:07]} 9. Bxc6 {[%emt 0:00:26]} bxc6 {[%emt 0:07:22]} 10. Re1 {[%emt 0:14:10]} Re8 {[%emt 0:33:08]} 11. Bg5 {[%emt 0:06:23]} Bb6 {[%emt 0:08:22]} 12. Bxf6 {[%emt 0:04:44]} Qxf6 {[%emt 0:01:35]} 13. d4 {[%emt 0:01:33]} Bg4 {[%emt 0:01:10]} 14. dxe5 {[%emt 0:01:01]} Qf5 {[%emt 0:03:08]} 15. Qd3 {[%emt 0:02:45]} Qxd3 {[%emt 0:03:05]} 16. cxd3 {[%emt 0:00:36]} Rad8 {[%emt 0:07:34]} 17. Rad1 {[%emt 0:00:49]} f6 {[%emt 0:07:14]} 18. exf6 {[%emt 0:03:11]} Rxe1+ {[%emt 0:00:05]} 19. Rxe1 {[%emt 0:00:10]} gxf6 {[%emt 0:05:46]} 20. Rd1 {[%emt 0:01:31]} Bd4 {[%emt 0:05:11]} 21. Rd2 {[%emt 0:01:52]} Bxf3 {[%emt 0:01:40]} 22. gxf3 {[%emt 0:00:12]} Rb8 {[%emt 0:03:00]} 23. Na4 {[%emt 0:02:59]} Rb5 {[%emt 0:00:15]} 24. Rc2 {[%emt 0:01:48]} Rg5+ {[%emt 0:00:05]} 25. Kf1 {[%emt 0:00:53]} Rf5 {[%emt 0:04:21]} 26. Kg2 {[%emt 0:10:29]} Rg5+ {[%emt 0:00:11]} 27. Kh1 {[%emt 0:00:13]} Rf5 {[%emt 0:01:03]} 28. Rc4 {[%emt 0:00:53]} c5 {[%emt 0:00:56]} 29. b4 {[%emt 0:04:53]} Rxf3 {[%emt 0:00:09]} 30. Nxc5 {[%emt 0:00:08]} Bxf2 {[%emt 0:03:48]} 31. Kg2 {[%emt 0:00:15]} Rf5 {[%emt 0:00:03]} 32. Ne4 {[%emt 0:03:35]} Bb6 {[%emt 0:00:46]} 33. a4 {[%emt 0:00:06]} a5 {[%emt 0:01:13]} 34. bxa5 {[%emt 0:00:05]} Bxa5 {[%emt 0:00:44]} 35. Rc5 {[%emt 0:00:08]} Rxc5 {[%emt 0:00:01]} 36. Nxc5 {[%emt 0:00:05]} Kf7 {[%emt 0:00:11]} 37. Kf3 {[%emt 0:01:51]} Bb6 {[%emt 0:00:34]} 38. d4 {[%emt 0:00:50]} Ke7 {[%emt 0:00:32]} 39. Ke4 {[%emt 0:01:52]} Kd6 {[%emt 0:00:24]} 40. Nb3 {[%emt 0:00:08]} Ba7 {[%emt 0:01:23]} 41. h4 {[%emt 0:36:19]} h5 {[%emt 0:14:49]} 42. a5 {[%emt 0:00:00]} Kc6 {[%emt 0:03:31]} 43. Kf5 {[%emt 0:00:00]} Kb5 {[%emt 0:02:44]} 44. Kg6 {[%emt 0:00:00]} Kc4 {[%emt 0:06:25]} 45. Nd2+ {[%emt 0:00:00]} Kxd4 {[%emt 0:01:03]} 46. Kxh5 {[%emt 0:00:00]} Kd5 {[%emt 0:00:34]} 47. Kg6 {[%emt 0:00:00]} Be3 {[%emt 0:00:50]} 48. a6 {[%emt 0:00:00]} Kc6 {[%emt 0:04:07]} 49. Nc4 {[%emt 0:00:00]} Bd4 {[%emt 0:00:27]} 50. h5 {[%emt 0:00:00]} f5 {[%emt 0:00:03]} 51. Kxf5 {[%emt 0:00:00]} Kb5 {[%emt 0:01:00]} 52. Ne5 {[%emt 0:00:00]} 1-0